bitfinex/quotes_SOLUSD_20220208
["timestamp","ask_amount","ask_price","bid_price","bid_amount"]
[1644351881294,36.66355223,110.98,110.89,0.024]
[1644351881698,13.5269,110.96,110.89,13.55]
[1644351881996,61.84854588,110.96,110.9,42.81564678]
[1644351882196,61.84854588,110.96,110.9,42.79164678]
[1644351882798,13.523,110.97,110.9,57.85205301]
[1644351882999,24.33895328,111.03,110.91,90.6]
[1644351883201,24.33895328,111.03,110.91,96.624]
[1644351883397,24.33895328,111.03,110.92,1.30930623]
[1644351883798,40.4917255,111.02,110.93,43.54584097]
[1644351884799,13.5195,111.0,110.94,13.5191]
[1644351885099,46.17839421,110.99,110.94,13.5191]
[1644351886901,59.69859421,110.99,110.94,13.5191]
[1644351887401,59.69859421,110.99,110.93,13.5219]
[1644351887601,59.94859421,110.99,110.93,13.5219]
[1644351887805,59.94859421,110.99,110.92,0.024]
[1644351888003,59.94859421,110.99,110.91,0.024]
[1644351888408,62.0563497,110.99,110.91,0.024]
[1644351892611,75.0463497,110.99,110.91,0.024]
[1644351894212,74.7963497,110.99,110.91,0.024]
[1644351894413,59.69859421,110.99,110.91,0.024]
[1644351894615,59.69859421,110.99,110.92,39.76450225]
[1644351894813,59.69859421,110.99,110.92,40.03850225]
[1644351895014,59.69859421,110.99,110.92,48.92850225]
[1644351895215,59.69859421,110.99,110.92,50.21380848]
[1644351895416,59.69859421,110.99,110.92,50.18980848]
[1644351895914,59.69859421,110.99,110.94,60.10098329]
[1644351896117,46.17839421,110.99,110.94,60.10098329]
[1644351896716,46.17839421,110.99,110.94,13.5208]
[1644351897719,46.42839421,110.99,110.94,51.22441435]
[1644351898119,59.94869421,110.99,110.94,13.5208]
[1644351898521,59.94869421,110.99,110.93,13.5215]
[1644351900319,59.69869421,110.99,110.93,13.5215]
[1644351900518,59.69869421,110.99,110.94,34.73178989]
[1644351900720,13.5203,110.99,110.94,48.25228989]
[1644351900921,1.27995328,111.0,110.94,58.49728989]
[1644351901119,1.27995328,111.01,110.94,58.74728989]
[1644351901722,44.05502508,111.01,110.94,58.74728989]
[1644351902820,13.5169,111.02,110.94,58.74728989]
[1644351903248,13.5169,111.02,110.94,73.02259612]
[1644351903747,49.49596075,111.02,110.94,73.02259612]
[1644351904150,49.49596075,111.02,110.94,71.73728989]
[1644351904348,49.49596075,111.02,110.94,77.73728989]
[1644351905248,49.49596075,111.02,110.94,91.13828989]
[1644351905651,13.7669,111.02,110.94,91.13828989]
[1644351906651,45.64617357,111.01,110.94,91.13828989]
[1644351906849,59.16397357,111.01,110.94,26.5105]
[1644351907053,59.16397357,111.01,110.94,13.5205]
[1644351907253,59.16397357,111.01,110.93,13.5216]
[1644351907450,59.41397357,111.01,110.93,13.5216]
[1644351907652,60.69392685,111.01,110.93,13.5216]
[1644351907850,60.69392685,111.01,110.93,53.1844407]
[1644351909750,60.69392685,111.01,110.93,13.5216]
[1644351909950,60.69392685,111.01,110.92,60.8099]
[1644351909951,62.80168234,111.01,110.92,60.8099]
[1644351910151,1.27995328,111.0,110.91,0.024]
[1644351910353,13.5262,110.98,110.91,0.024]
[1644351910553,13.5262,110.98,110.89,1.28076991]
[1644351910753,43.7564352,110.97,110.9,0.024]
[1644351910953,52.3154352,110.97,110.89,1.28076991]
[1644351911155,52.3154352,110.97,110.88,1.30476991]
[1644351911355,13.529,110.95,110.88,1.28076991]
[1644351911555,12.99,110.94,110.87,1.28076991]
[1644351911755,22.375,110.94,110.87,1.28076991]
[1644351912154,47.10098676,110.93,110.87,1.28076991]
[1644351912555,13.5345,110.92,110.86,1.28076991]
[1644351912956,40.41263335,110.91,110.86,1.28076991]
[1644351913955,40.41263335,110.91,110.85,1.28076991]
[1644351914655,13.5335,110.9,110.85,1.28076991]
[1644351915058,13.5335,110.9,110.84,14.66906991]
[1644351915456,40.79998296,110.89,110.84,13.3883]
[1644351915656,13.5375,110.88,110.85,38.59232492]
[1644351915856,13.5375,110.88,110.86,6.06439994]
[1644351916356,13.5375,110.88,110.84,13.3883]
[1644351916760,13.5332,110.89,110.84,13.3883]
[1644351917156,13.5332,110.89,110.85,36.39464958]
[1644351917355,48.18075115,110.89,110.85,36.39464958]
[1644351917756,13.5332,110.89,110.85,36.39464958]
[1644351918559,13.7832,110.89,110.85,36.39464958]
[1644351918757,57.63086568,110.89,110.85,36.39464958]
[1644351918957,57.63086568,110.89,110.84,26.9212]
[1644351919158,57.63086568,110.89,110.84,13.3883]
[1644351919360,67.31886568,110.89,110.84,13.3883]
[1644351920658,57.63086568,110.89,110.84,13.3883]
[1644351924569,70.17986568,110.89,110.82,1.28076991]
[1644351924763,70.17986568,110.89,110.8,1.27405073]
[1644351924764,13.5401,110.86,110.8,1.27405073]
[1644351924964,35.9600836,110.85,110.79,1.27405073]
[1644351925962,68.5428,110.84,110.76,2.54708481]
[1644351926163,12.99,110.83,110.75,2.55986375]
[1644351926366,23.653,110.83,110.74,2.55986375]
[1644351926563,46.91042047,110.82,110.74,2.55986375]
[1644351926764,41.83691003,110.8,110.75,0.024]
[1644351926965,13.5488,110.79,110.74,2.55986375]
[1644351927368,37.54866106,110.78,110.74,2.55986375]
[1644351927667,19.52221866,110.78,110.74,5.10762959]
[1644351927867,19.52221866,110.78,110.74,2.55986375]
[1644351928068,19.77221866,110.78,110.74,2.55986375]
[1644351928666,19.77221866,110.78,110.75,2.55986375]
[1644351928865,19.77221866,110.78,110.76,3.03219997]
[1644351928866,13.55,110.77,110.76,3.03219997]
[1644351929065,13.55,110.77,110.75,2.55986375]
[1644351929466,13.55,110.77,110.76,3.03219997]
[1644351929669,13.55,110.77,110.76,2.54776584]
[1644351929867,13.55,110.77,110.75,2.55986375]
[1644351930769,13.55,110.77,110.72,3.86138237]
[1644351930770,13.55,110.77,110.76,2.55986375]
[1644351930969,56.39147561,110.77,110.76,2.55986375]
[1644351931570,13.55,110.77,110.76,5.59206372]
[1644351931772,12.99,110.82,110.76,2.55986375]
[1644351931971,58.1451,110.82,110.76,2.55986375]
[1644351932672,38.36467329,110.81,110.76,2.55986375]
[1644351933073,38.61467329,110.81,110.76,2.55986375]
[1644351933673,13.5462,110.79,110.76,2.55986375]
[1644351933874,45.91622157,110.78,110.76,2.55986375]
[1644351934675,45.91622157,110.78,110.76,5.10762959]
[1644351934875,59.46362157,110.78,110.76,5.59206372]
[1644351935076,13.5474,110.78,110.77,5.57996581]
[1644351935275,12.99,110.82,110.77,5.57996581]
[1644351935476,12.99,110.82,110.78,2.54776584]
[1644351935879,12.99,110.82,110.77,2.55986375]
[1644351936080,44.81782921,110.81,110.77,2.55986375]
[1644351937509,45.06782921,110.81,110.77,2.55986375]
[1644351938007,45.06782921,110.81,110.77,45.00971701]
[1644351938208,45.06782921,110.81,110.78,5.10762959]
[1644351938408,45.06782921,110.81,110.79,6.06439994]
[1644351938808,58.61292921,110.81,110.8,2.54776584]
[1644351939508,58.61292921,110.81,110.79,2.55986375]
[1644351939708,58.61292921,110.81,110.8,2.55986375]
[1644351940816,0.25,110.81,110.8,2.55986375]
[1644351941016,0.25,110.81,110.8,8.62426369]
[1644351941216,0.25,110.81,110.8,11.17202953]
[1644351941914,0.25,110.81,110.8,5.10762959]
[1644351942113,0.25,110.81,110.8,2.55986375]
[1644351943013,0.25,110.81,110.79,2.55986375]
[1644351943214,40.27398437,110.82,110.79,2.55986375]
[1644351943414,40.27398437,110.82,110.78,5.10762959]
[1644351943616,53.81758437,110.82,110.78,5.10762959]
[1644351943818,53.81758437,110.82,110.77,2.55986375]
[1644351944015,53.81758437,110.82,110.76,2.55986375]
[1644351944214,53.81758437,110.82,110.75,2.55986375]
[1644351944215,54.06758437,110.82,110.75,2.55986375]
[1644351944616,54.06758437,110.82,110.74,2.58815966]
[1644351945019,54.06758437,110.82,110.74,5.14802341]
[1644351945519,54.06758437,110.82,110.75,43.26667358]
[1644351945720,54.06758437,110.82,110.75,43.29067358]
[1644351946918,54.06758437,110.82,110.75,43.26667358]
[1644351947319,13.5436,110.82,110.75,43.26667358]
[1644351947722,13.5424,110.83,110.75,43.51667358]
[1644351947920,22.891,110.87,110.78,13.5399]
[1644351948421,42.2201912,110.86,110.79,39.29099799]
[1644351948621,55.7595912,110.86,110.79,39.29099799]
[1644351949722,13.5394,110.86,110.79,39.54099799]
[1644351949922,13.5373,110.88,110.79,54.3753509]
[1644351950125,15.53040379,110.93,110.79,70.4093509]
[1644351950325,2.54040379,110.93,110.8,59.8267]
[1644351950524,2.54040379,110.94,110.81,0.024]
[1644351950730,2.54040379,110.94,110.82,67.48708459]
[1644351950925,2.54040379,110.95,110.83,13.5558]
[1644351951130,2.54040379,110.95,110.85,0.31520178]
[1644351951325,5.09653626,110.95,110.85,11.60320178]
[1644351951527,13.527,110.96,110.87,90.6]
[1644351951528,2.54040379,110.96,110.87,90.6]
[1644351951725,2.54040379,110.96,110.87,6.25]
[1644351951924,43.32002688,110.95,110.88,37.68811771]
[1644351952125,43.32002688,110.95,110.87,14.82235291]
[1644351952126,45.86043067,110.95,110.87,1.29565291]
[1644351952328,45.86043067,110.95,110.85,0.024]
[1644351953126,46.11043067,110.95,110.85,47.22756347]
[1644351953326,53.84020307,110.93,110.86,13.5304]
[1644351953527,53.84020307,110.93,110.87,48.01960648]
[1644351953728,53.84020307,110.93,110.85,0.024]
[1644351954327,55.94795856,110.93,110.85,0.024]
[1644351954527,58.48836235,110.93,110.83,0.024]
[1644351954727,13.5365,110.89,110.8,37.19416518]
[1644351954927,47.30823651,110.88,110.81,0.024]
[1644351955127,47.30823651,110.88,110.8,37.19416518]
[1644351955729,47.30823651,110.88,110.8,37.44416518]
[1644351956529,12.99,110.94,110.81,13.5366]
[1644351956730,12.99,110.94,110.81,138.4136]
[1644351957030,62.80820379,110.96,110.82,1.31965291]
[1644351957230,62.80820379,110.96,110.83,0.024]
[1644351957431,36.07057181,110.95,110.83,38.61213397]
[1644351957630,36.07057181,110.95,110.84,0.024]
[1644351957836,36.07057181,110.95,110.84,1.31965291]
[1644351958030,36.32057181,110.95,110.85,42.05556538]
[1644351958230,13.5313,110.93,110.85,43.35121829]
[1644351958433,43.20897026,110.92,110.82,0.024]
[1644351959331,43.20897026,110.92,110.82,46.94339273]
[1644351959535,13.535,110.9,110.83,13.5582]
[1644351959733,49.30031998,110.9,110.84,41.76717406]
[1644351959938,49.30031998,110.9,110.84,41.74317406]
[1644351961635,49.55031998,110.9,110.84,41.74317406]
[1644351962235,49.55031998,110.9,110.83,0.024]
[1644351962437,64.64807547,110.9,110.81,0.024]
[1644351962635,64.64807547,110.9,110.8,0.024]
[1644351963134,64.64807547,110.9,110.8,46.74410838]
[1644351963435,64.64807547,110.9,110.81,0.024]
[1644351965236,64.64807547,110.9,110.78,0.024]
[1644351965440,64.64807547,110.9,110.77,0.024]
[1644351965840,87.79677547,110.9,110.77,0.024]
[1644351966040,87.79677547,110.9,110.77,41.93215431]
[1644351966338,62.29031998,110.9,110.78,0.024]
[1644351966739,64.39807547,110.9,110.78,1.31965291]
[1644351966943,64.39807547,110.9,110.79,0.024]
[1644351967340,64.39807547,110.9,110.77,0.024]
[1644351967540,62.29031998,110.9,110.79,1.29565291]
[1644351967739,49.30031998,110.9,110.8,0.024]
[1644351967942,49.30031998,110.9,110.8,36.13873915]
[1644351968140,49.30031998,110.9,110.81,1.31965291]
[1644351968343,45.1157,110.93,110.82,148.5588]
[1644351968560,3.80572354,110.99,110.83,182.49604172]
[1644351968561,2.54040379,110.99,110.83,182.49604172]
[1644351968742,2.54040379,110.99,110.87,0.30855794]
[1644351968946,2.54040379,111.0,110.87,8.25155794]
[1644351969145,2.54040379,111.0,110.88,14.28565291]
[1644351969342,2.54040379,111.0,110.91,13.5221]
[1644351969343,47.39959337,111.0,110.91,13.5221]
[1644351969543,47.39959337,111.0,110.92,39.87552744]
[1644351969544,47.44520539,111.0,110.92,39.87552744]
[1644351969842,76.49960918,111.0,110.89,46.4909]
[1644351970044,63.50960918,111.0,110.89,46.4909]
[1644351970245,63.50960918,111.0,110.89,52.7409]
[1644351970246,49.98560918,111.0,110.89,52.7409]
[1644351970447,47.39959337,111.0,110.92,13.5223]
[1644351970650,49.98560918,111.0,110.9,46.94463239]
[1644351971044,49.93999716,111.0,110.9,46.94463239]
[1644351971247,5.09692412,110.99,110.9,46.94463239]
[1644351971447,57.54669295,110.98,110.9,46.94463239]
[1644351972047,44.01969295,110.98,110.9,46.94463239]
[1644351972247,44.01969295,110.98,110.9,48.49520824]
[1644351972445,44.01969295,110.98,110.9,54.49520824]
[1644351973246,44.01969295,110.98,110.9,14.82617585]
[1644351973448,44.01969295,110.98,110.87,1.30057585]
[1644351973649,46.56009674,110.98,110.87,6.0]
[1644351973847,46.56009674,110.98,110.85,46.505]
[1644351973848,2.54040379,110.97,110.86,12.99]
[1644351974048,46.56009674,110.98,110.86,13.29665188]
[1644351974249,37.92751493,110.96,110.87,60.187913]
[1644351974448,2.79040379,110.98,110.87,60.187913]
[1644351974647,2.79040379,110.98,110.87,79.967113]
[1644351974848,2.79040379,110.98,110.87,81.26768885]
[1644351975150,2.79040379,110.98,110.87,151.23008933]
[1644351975951,3.85133556,111.02,110.9,0.31564097]
[1644351976152,0.04561202,111.02,110.95,54.13]
[1644351976351,0.04561202,111.03,110.96,12.99]
[1644351976551,38.7477798,111.04,110.97,45.68782886]
[1644351976751,2.55688684,111.03,110.97,58.92782886]
[1644351976953,2.55688684,111.03,110.97,66.22840471]
[1644351977150,2.55688684,111.03,110.97,65.97840471]
[1644351977352,3.80572354,111.04,110.97,66.22840471]
[1644351977554,3.80572354,111.04,110.97,78.43972886]
[1644351978170,44.4364192,111.03,110.97,78.43972886]
[1644351978368,2.55688684,111.02,110.97,78.43972886]
[1644351979069,47.59835896,111.01,110.97,78.43972886]
[1644351979272,47.59835896,111.01,110.97,78.18972886]
[1644351979468,47.59835896,111.01,110.97,19.5119]
[1644351979667,47.59835896,111.01,110.94,94.0428]
[1644351979668,2.55781092,111.0,110.96,1.49696071]
[1644351980070,2.55781092,111.0,110.96,1.74696071]
[1644351980273,2.55781092,111.0,110.96,1.49696071]
[1644351980570,41.46075114,110.99,110.94,95.18837684]
[1644351980773,2.55781092,110.98,110.94,46.20117684]
[1644351980971,41.46075114,110.99,110.94,46.20117684]
[1644351981173,41.46075114,110.99,110.94,59.97187684]
[1644351981373,0.04561202,111.02,110.94,59.97187684]
[1644351981673,2.60504264,111.02,110.94,59.72187684]
[1644351981875,0.04561202,111.02,110.94,59.97187684]
[1644351982075,0.04561202,111.03,110.94,59.97187684]
[1644351982276,39.13389573,111.03,110.94,59.97187684]
[1644351982676,2.55943062,111.02,110.94,59.97187684]
[1644351982877,45.60310159,111.01,110.94,59.97187684]
[1644351983278,51.60310159,111.01,110.94,59.97187684]
[1644351984077,51.60310159,111.01,110.94,13.5207]
[1644351984279,51.60310159,111.01,110.92,62.3487]
[1644351984478,53.7564691,111.01,110.89,48.1126]
[1644351985079,51.64871361,111.01,110.9,34.55592906]
[1644351985280,65.17041361,111.01,110.91,13.5243]
[1644351985482,65.17041361,111.01,110.92,45.19159088]
[1644351985884,51.64871361,111.01,110.92,45.44159088]
[1644351986084,51.60310159,111.01,110.92,58.61316673]
[1644351986283,45.60310159,111.01,110.92,64.61316673]
[1644351986489,45.60310159,111.01,110.93,12.99]
[1644351986683,45.64871361,111.01,110.93,18.99]
[1644351986982,45.60310159,111.01,110.96,42.08709937]
[1644351987784,45.60310159,111.01,110.96,55.60549937]
[1644351988387,51.60310159,111.01,110.93,82.6686]
[1644351988594,51.60310159,111.01,110.93,82.4186]
[1644351988786,51.60310159,111.01,110.94,13.5207]
[1644351988987,51.64871361,111.01,110.93,24.3666]
[1644351989286,51.60310159,111.01,110.93,24.3666]
[1644351989887,51.60310159,111.01,110.92,24.5985]
[1644351990284,51.60310159,111.01,110.92,70.89235019]
[1644351990687,0.81381655,111.01,110.92,84.41545019]
[1644351990888,3.80572354,111.09,110.94,95.0]
[1644351991088,3.80572354,111.1,110.94,167.67128103]
[1644351991287,2.55342359,111.08,110.95,69.96240048]
[1644351991490,2.55342359,111.1,110.96,100.3055]
[1644351991687,35.84366934,111.09,110.98,0.30768685]
[1644351991887,35.84366934,111.09,110.99,94.97493351]
[1644351992091,35.84366934,111.09,110.99,46.84493351]
[1644351992289,35.84366934,111.09,111.01,37.70336987]
[1644351992488,2.55160563,111.08,111.01,49.31636987]
[1644351992685,42.50352918,111.07,111.01,49.31636987]
[1644351992895,42.50352918,111.07,111.01,62.82506987]
[1644351993285,42.50352918,111.07,111.01,51.21206987]
[1644351995890,42.50352918,111.07,111.01,13.5087]
[1644351996090,42.50352918,111.07,110.99,17.07]
[1644351996091,42.50352918,111.07,110.99,30.3332]
[1644351996691,42.50352918,111.07,110.99,24.3332]
[1644351996906,42.50352918,111.07,110.99,58.49968394]
[1644351997092,56.01892918,111.07,110.99,44.98648394]
[1644351997492,42.50352918,111.07,110.99,44.98648394]
[1644351997893,42.50352918,111.07,111.01,35.1465223]
[1644351998796,42.50352918,111.07,111.01,48.6584223]
[1644351998993,42.50352918,111.07,111.01,13.5119]
[1644351999195,42.50352918,111.07,110.99,10.82]
[1644352000095,10.06292231,111.25,111.08,144.73]
[1644352000294,14.00704056,111.29,111.19,9.40065293]
[1644352000500,224.43700938,111.32,111.24,0.31498863]
[1644352000698,224.43700938,111.32,111.25,10.82]
[1644352000899,34.22717994,111.31,111.25,10.82]
[1644352001097,34.22717994,111.31,111.21,29.62201468]
[1644352001400,34.22717994,111.31,111.21,18.80201468]
[1644352001600,34.22717994,111.31,111.21,18.30201468]
[1644352001798,0.44,111.3,111.21,1.468e-05]
[1644352001999,34.22717994,111.31,111.18,4.70050367]
[1644352002000,39.31455618,111.27,111.18,4.70050367]
[1644352002201,38.87455618,111.27,111.18,4.70050367]
[1644352002605,2.10775549,111.3,111.18,4.70050367]
[1644352002801,2.10775549,111.3,111.19,10.82]
[1644352003002,2.10775549,111.3,111.19,11.12852961]
[1644352003208,224.43700938,111.32,111.19,18.40848992]
[1644352003403,25.65545549,111.36,111.19,12.09996031]
[1644352003701,41.93036573,111.35,111.19,11.07]
[1644352004103,2.10775549,111.34,111.19,10.82]
[1644352004409,47.12651347,111.33,111.19,10.82]
[1644352004604,0.44,111.32,111.19,1.32198461]
[1644352004805,2.54775549,111.32,111.19,1.32198461]
[1644352005003,2.54775549,111.32,111.18,4.70050367]
[1644352005004,0.44,111.29,111.18,4.70050367]
[1644352005203,57.47013865,111.31,111.18,4.70050367]
[1644352005405,44.96059902,111.27,111.18,4.70050367]
[1644352005812,44.96059902,111.27,111.19,10.82]
[1644352006011,44.96059902,111.27,111.19,20.873]
[1644352006613,44.96059902,111.27,111.19,10.82]
[1644352008012,47.06835451,111.27,111.17,10.82]
[1644352008212,0.02631598,111.26,111.14,10.82]
[1644352008813,2.13407147,111.26,111.14,10.82]
[1644352009017,35.3421243,111.25,111.14,10.82]
[1644352009412,37.44987979,111.25,111.14,10.82]
[1644352009813,35.3421243,111.25,111.14,10.82]
[1644352012039,35.3421243,111.25,111.14,17.07]
[1644352012243,35.3421243,111.25,111.14,36.049597]
[1644352012639,35.3421243,111.25,111.14,52.11872649]
[1644352013540,35.3421243,111.25,111.14,48.26993027]
[1644352014948,35.3421243,111.25,111.14,16.82]
[1644352015142,35.3421243,111.25,111.14,10.82]
[1644352015843,0.02631598,111.25,111.14,21.648]
[1644352016043,44.98911598,111.34,111.16,0.3008636]
[1644352016246,0.02631598,111.24,111.19,0.30828693]
[1644352016449,0.02631598,111.33,111.2,10.82]
[1644352016649,40.4645352,111.36,111.2,64.7782]
[1644352016842,40.4645352,111.36,111.2,98.80335976]
[1644352017443,40.4645352,111.36,111.2,82.73423027]
[1644352017644,53.9482352,111.36,111.22,13.4839]
[1644352017844,53.9482352,111.36,111.23,10.82]
[1644352018052,40.4645352,111.36,111.23,11.13321076]
[1644352018245,40.4645352,111.36,111.23,17.38321076]
[1644352018746,0.44,111.34,111.18,180.2197]
[1644352018947,0.02631598,111.33,111.18,135.27]
[1644352019150,0.02631598,111.35,111.19,10.82]
[1644352019451,0.02631598,111.32,111.19,57.3027]
[1644352019648,0.02631598,111.34,111.19,57.3027]
[1644352019848,0.02631598,111.35,111.19,57.3027]
[1644352020048,0.02631598,111.35,111.21,13.4847]
[1644352020250,0.02631598,111.35,111.22,10.82]
[1644352020749,0.02631598,111.35,111.22,17.07]
[1644352021048,13.51031598,111.35,111.22,24.5536]
[1644352021250,46.68597265,111.34,111.22,24.5536]
[1644352021454,0.02631598,111.33,111.22,30.5536]
[1644352022849,0.02631598,111.33,111.22,30.85934472]
[1644352023449,0.02631598,111.33,111.22,24.3036]
[1644352023649,0.02631598,111.33,111.22,10.82]
[1644352023848,0.02631598,111.33,111.2,36.5968]
[1644352024254,0.02631598,111.33,111.2,23.1105]
[1644352024450,36.05513018,111.31,111.11,0.44]
[1644352024650,43.47909837,111.29,111.18,13.489]
[1644352024849,0.02631598,111.28,111.18,13.489]
[1644352025451,0.02631598,111.28,111.15,35.7971]
[1644352025653,0.02631598,111.28,111.16,13.4912]
[1644352025852,39.12288396,111.27,111.16,13.4912]
[1644352026052,0.02631598,111.26,111.16,13.4912]
[1644352026253,8.38331598,111.26,111.16,0.25]
[1644352026454,37.76363299,111.25,111.15,24.9771]
[1644352027053,37.76363299,111.25,111.14,10.82]
[1644352027952,37.76363299,111.25,111.14,24.3139]
[1644352028553,37.76363299,111.25,111.14,30.3139]
[1644352029152,37.76363299,111.25,111.14,30.5639]
[1644352030664,37.76363299,111.25,111.14,19.7439]
[1644352030955,45.42763299,111.25,111.13,22.8861]
[1644352031155,45.42763299,111.25,111.06,47.1194]
[1644352031356,43.69208984,111.23,111.07,10.82]
[1644352031556,0.02631598,111.22,111.07,10.82]
[1644352031961,0.02631598,111.22,111.07,19.8275271]
[1644352032355,0.02631598,111.22,111.07,25.8275271]
[1644352032756,13.52631598,111.22,111.1,13.4985]
[1644352032958,41.96371869,111.21,111.1,13.4985]
[1644352033156,0.02631598,111.2,111.1,19.7485]
[1644352033363,0.02631598,111.2,111.1,30.5685]
[1644352033656,0.02631598,111.2,111.1,39.5760271]
[1644352034258,0.02631598,111.2,111.1,30.5685]
[1644352034861,0.02631598,111.2,111.13,13.4936]
[1644352035059,0.02631598,111.21,111.14,10.82]
[1644352035259,0.02631598,111.26,111.14,11.07]
[1644352035461,0.02631598,111.3,111.14,17.07]
[1644352035660,0.02631598,111.25,111.14,39.8067]
[1644352035860,0.02631598,111.29,111.19,13.4854]
[1644352036060,0.02631598,111.24,111.2,10.82]
[1644352036261,0.02631598,111.28,111.2,11.07]
[1644352036459,0.45108914,111.38,111.2,62.0128]
[1644352036460,0.02631598,111.33,111.2,62.0128]
[1644352036659,0.02631598,111.36,111.21,54.13]
[1644352036861,0.02631598,111.32,111.22,10.82]
[1644352037061,0.02631598,111.35,111.22,28.347]
[1644352037263,0.02631598,111.36,111.22,28.597]
[1644352037564,0.02631598,111.36,111.22,73.5355]
[1644352038581,47.25305025,111.34,111.22,42.0811]
[1644352038780,0.02631598,111.33,111.22,36.0811]
[1644352038983,0.02631598,111.33,111.22,24.5541]
[1644352041081,0.02631598,111.33,111.22,30.5541]
[1644352041680,0.02631598,111.33,111.22,24.5541]
[1644352041880,0.02631598,111.33,111.22,30.5541]
[1644352042080,0.02631598,111.33,111.22,24.5541]
[1644352042280,0.02631598,111.33,111.22,13.7341]
[1644352042484,0.02631598,111.33,111.22,19.7341]
[1644352043081,0.02631598,111.33,111.22,13.7341]
[1644352043281,13.51261598,111.33,111.22,13.7341]
[1644352043483,38.40084957,111.32,111.22,19.7341]
[1644352043680,0.02631598,111.31,111.2,37.9134]
[1644352043882,0.02631598,111.31,111.2,44.1634]
[1644352044983,0.02631598,111.31,111.2,19.7371]
[1644352045984,0.02631598,111.31,111.21,10.82]
[1644352046184,0.02631598,111.31,111.22,13.485]
[1644352046585,0.02631598,111.31,111.22,19.735]
[1644352047586,38.42716555,111.32,111.22,19.735]
[1644352047991,38.42716555,111.32,111.22,13.735]
[1644352050189,51.91416555,111.32,111.21,10.82]
[1644352050392,51.91416555,111.32,111.21,6.0]
[1644352050589,54.02192104,111.32,111.2,6.0]
[1644352050993,51.91416555,111.32,111.19,29.4632]
[1644352051591,51.91416555,111.32,111.19,42.9521]
[1644352051793,51.91416555,111.32,111.19,53.7721]
[1644352054191,51.91416555,111.32,111.19,55.04414607]
[1644352054592,51.91416555,111.32,111.19,55.29414607]
[1644352055396,51.91416555,111.32,111.19,54.0221]
[1644352055794,51.91416555,111.32,111.21,1.27204607]
[1644352056193,51.91416555,111.32,111.21,0.25]
[1644352056796,51.91416555,111.32,111.19,12.09204607]
[1644352056996,51.91416555,111.32,111.18,1.27204607]
[1644352056997,90.6,111.31,111.18,1.27204607]
[1644352057196,37.51910149,111.27,111.17,524.30524519]
[1644352057397,37.54541747,111.27,111.17,523.03319912]
[1644352057698,0.02631598,111.27,111.17,524.30524519]
[1644352057897,0.02631598,111.3,111.17,536.39664]
[1644352058096,0.02631598,111.27,111.18,1.27204607]
[1644352058296,0.02631598,111.29,111.19,10.82]
[1644352058700,0.02631598,111.29,111.19,11.07]
[1644352059096,0.02631598,111.29,111.19,18.34204607]
[1644352059703,0.02631598,111.29,111.2,13.4865]
[1644352059900,0.02631598,111.31,111.21,10.82]
[1644352060099,0.02631598,111.36,111.21,28.147]
[1644352060300,0.02631598,111.31,111.21,28.397]
[1644352060505,7.919,111.34,111.21,17.07]
[1644352060701,0.02631598,111.31,111.22,13.4849]
[1644352060904,38.19675986,111.32,111.23,10.82]
[1644352061103,38.19675986,111.32,111.23,16.82]
[1644352061304,38.19675986,111.32,111.23,17.07]
[1644352061703,0.02631598,111.33,111.23,17.07]
[1644352061911,0.02631598,111.35,111.25,13.4813]
[1644352062107,0.02631598,111.33,111.27,0.31352158]
[1644352062306,0.02631598,111.35,111.3,0.31487507]
[1644352062506,5.12e-06,111.38,111.31,76.0]
[1644352062805,5.12e-06,111.38,111.34,13.47]
[1644352063008,5.12e-06,111.38,111.34,25.859]
[1644352063206,5.12e-06,111.38,111.34,32.109]
[1644352064008,5.12e-06,111.38,111.34,31.859]
[1644352064209,5.12e-06,111.38,111.34,13.47]
[1644352064807,5.12e-06,111.38,111.33,13.4728]
[1644352065208,5.12e-06,111.38,111.29,10.82]
[1644352065410,37.27278969,111.38,111.29,10.82]
[1644352065911,37.27278969,111.38,111.29,24.2965]
[1644352066109,37.27278969,111.38,111.29,10.82]
[1644352066508,37.27278969,111.38,111.27,48.4142]
[1644352066709,37.27278969,111.38,111.26,10.82]
[1644352066909,37.27278969,111.38,111.25,24.138]
[1644352067209,37.27278969,111.38,111.26,13.4811]
[1644352068013,50.75208969,111.38,111.25,37.6204]
[1644352068314,50.75208969,111.38,111.25,24.138]
[1644352068511,52.85984518,111.38,111.21,24.2844]
[1644352068711,50.75208969,111.38,111.21,18.09139481]